[Event "Czech Open-Rapid 2022"]
[Site "Pardubice"]
[Date "2022.07.20"]
[Round "2.33"]
[White "Ibrahim, Emad Eldin"]
[Black "Savitha Shri B"]
[Result "0-1"]
[ECO "B23"]
[WhiteElo "2028"]
[BlackElo "2278"]
[Annotator "TA"]
[PlyCount "130"]
[EventDate "2022.07.20"]
[EventType "swiss"]
[EventCountry "CZE"]
[SourceTitle "playchess.com"]
[Source "ChessBase"]
[SourceQuality "1"]
[TimeControl "1200+10"]

{[%evp 16,130,89,97,110,114,187,143,145,85,177,166,162,170,170,86,124,132,166,183,245,224,236,223,250,244,437,435,416,406,705,697,914,449,732,714,1270,1029,1040,839,1127,553,549,545,520,516,476,475,562,536,481,-14,-14,-13,-7,-96,-67,-193,-52,-169,-155,-602,-77,-77,-77,-112,-112,-112,-48,-39,-35,-56,-52,-115,-118,-128,-128,-128,-127,-127,-127,-127,-127,-306,-222,-330,-300,-295,-287,-29994,-29995,-29995,-294,-294,-280,-263,-227,-227,-80,-168,-170,-226,-220,-276,-134,-666,-639,-29972,-29973,-29973,-29972,-29972,-29973,-29994,-29995,-29995,-29996]} 1. e4 {[%emt 0:00:02]} c5 {[%emt 0:00:01]} 2. Nc3 {[%emt 0:00:03]} Nc6 {[%emt 0:00:03]} 3. f4 {[%emt 0:00:03]} d6 {[%emt 0:00:02]} 4. Nf3 {[%emt 0:00:03]} g6 {[%emt 0:00:02]} 5. Bb5 {[%emt 0:00:06]} Bg7 {[%emt 0:00:02]} 6. Bxc6+ {[%emt 0:00:05]} bxc6 {[%emt 0:00:01]} 7. d3 {[%emt 0:00:10]} e6 {[%emt 0:00:43]} 8. O-O {[%emt 0:00:06]} Ne7 {[%emt 0:00:03]} 9. Qe1 {[%emt 0:00:26]} Ba6 {[%emt 0:00:23] B23: Closed Sicilian: Lines without g3.} 10. b3 {[%emt 0:03:38]} Rb8 {[%emt 0:00:43]} (10... f5 $16) 11. Bd2 {[%emt 0:00:40]} O-O {[%emt 0:00:35] White is clearly better.} 12. Rd1 {[%emt 0:00:03] [#]} (12. e5 $142) 12... Qc8 $146 {[%emt 0:02:16]} (12... f5 $16) ({Predecessor:} 12... Re8 13. Ng5 h6 14. Nf3 Nc8 15. e5 d5 16. Na4 Qe7 17. Be3 d4 18. Bc1 Nb6 {0-1 (66) Vicedo Navau,C (1887)-Martinez Perez,P (1972) Santa Eulalia de Roncana 2014}) 13. e5 $18 {[%emt 0:00:18]} d5 {[%emt 0:00:04]} 14. Na4 {[%emt 0:00:02]} c4 {[%emt 0:00:11]} 15. dxc4 {[%emt 0:00:18]} (15. Bb4 $18 Re8 16. dxc4) 15... dxc4 {[%emt 0:00:33]} 16. Bb4 {[%emt 0:01:48]} Re8 {[%emt 0:00:20]} 17. Rf2 $1 {[%emt 0:02:46]} Nd5 {[%emt 0:02:36]} (17... c5 $142 18. Bxc5 (18. Nxc5 Nd5 $16) 18... Qb7) 18. Bd6 {[%emt 0:00:04]} Ra8 {[%emt 0:00:11]} 19. Ng5 {[%emt 0:01:05]} Rd8 {[%emt 0:03:45]} 20. Nc5 {[%emt 0:00:56]} cxb3 $2 {[%emt 0:01:39]} (20... Bb5 21. Nge4 a5) 21. axb3 {[%emt 0:00:14]} Bb7 {[%emt 0:00:17]} 22. c4 {[%emt 0:00:33]} Nc7 {[%emt 0:00:26]} (22... h6 $142 23. cxd5 cxd5) 23. Rfd2 {[%emt 0:00:30]} Na6 {[%emt 0:00:25]} 24. Nge4 {[%emt 0:00:32]} (24. Qh4 $142 {[%csl Gg5][%cal Rh4h7]} h6 25. Nxf7 $1 {[%mdl 512]}) 24... Re8 {[%emt 0:00:39]} (24... Nxc5 $142 25. Nxc5 (25. Bxc5 Qc7 $18) 25... Re8) 25. Qh4 {[%emt 0:00:18]} h6 {[%emt 0:01:17]} 26. Nxa6 {[%emt 0:01:42]} Bxa6 {[%emt 0:00:05]} 27. Bc5 {[%emt 0:00:02]} Qb7 {[%emt 0:00:34]} 28. Rd7 {[%emt 0:00:41]} (28. b4 $142 {Rd7 is the strong threat.} h5 29. Rd7) 28... Qxb3 {[%emt 0:00:21]} 29. Nf6+ {[%emt 0:00:06]} Kh8 {[%emt 0:00:26]} 30. Nxe8 {[%emt 0:00:04]} Rxe8 {[%emt 0:00:15]} 31. Be7 {[%emt 0:01:18] Threatens to win with Bf6.} Kg8 {[%emt 0:02:58]} 32. Bf6 {[%emt 0:01:11] And now Bxg7 would win.} Bf8 {[%emt 0:00:00]} 33. Qg4 $2 {[%emt 0:01:37]} (33. h3 $18) 33... Bxc4 $11 {[%emt 0:00:35]} 34. h4 $1 {[%emt 0:00:26]} h5 $36 {[%emt 0:00:07][%mdl 2048] Black has good play.} 35. Qg5 {[%emt 0:00:37]} (35. Qh3 $11 {keeps the balance.} Qxh3 36. gxh3 Bc5+ 37. Kh2) 35... Bd5 $17 {[%emt 0:00:03] The board is on fire. This bishop pair is nice.} 36. Rf1 {[%emt 0:01:09]} (36. Ra1 $15) 36... a5 {[%emt 0:00:09]} ({Black should play} 36... Qc4 $1 $19 {( -> ...Bc5+)} 37. Re1 Qc2) 37. Bd8 {[%emt 0:00:38]} (37. Kh2 $2 a4 38. Rf2 Qb6 $19) (37. Be7 $1 $15) 37... Qc2 $19 {[%emt 0:00:28]} 38. Bxa5 $2 {[%emt 0:00:13] [#]} (38. Kh2 $17) 38... Qc5+ $2 {[%emt 0:00:14]} (38... Bh6 $1 $19 {[%mdl 512]} 39. Qg3 (39. Rf2 $2 Qd1+ 40. Kh2 Bxg5 $19) 39... Qc5+ 40. Qf2 Qxa5) 39. Kh2 $17 {[%emt 0:00:14][%cal Od7f7] Hoping for Rxf7!} Be7 $1 {[%emt 0:00:31]} (39... Qxa5 40. Qf6 Be7 41. Rxe7 Rxe7 42. Qxe7 $11) 40. Bb6 {[%emt 0:01:07]} Qb4 {[%emt 0:00:33]} 41. Rxe7 {[%emt 0:00:17]} Qxe7 {[%emt 0:00:38]} ({Better is} 41... Rxe7 $17 42. Ra1 Re8) 42. Qxe7 $15 {[%emt 0:00:02]} Rxe7 $17 {[%emt 0:00:01][%mdl 4096] Endgame KRB-KRB} 43. Bc5 {[%emt 0:00:00]} Rb7 {[%emt 0:00:00]} 44. Ra1 {[%emt 0:00:00]} (44. Rf2 $15) 44... Rb2 {[%emt 0:00:33]} 45. Ra8+ {[%emt 0:00:00]} Kh7 {[%emt 0:00:17]} 46. Be7 {[%emt 0:00:00]} Rxg2+ {[%emt 0:00:32]} 47. Kh3 {[%emt 0:00:00] [#]} g5 $1 {[%emt 0:00:30]} 48. fxg5 {[%emt 0:00:21][%cal Og5g6]} Rf2 {[%emt 0:00:36][%cal Oc6c5]} 49. Bf6 $2 {[%emt 0:00:14]} (49. Ra4 $17) 49... Kg6 {[%emt 0:00:02]} 50. Rh8 {[%emt 0:00:15]} (50. Ra5 $142) 50... c5 {[%emt 0:00:10]} 51. Rh6+ {[%emt 0:00:08]} Kf5 {[%emt 0:00:00]} 52. Rxh5 $2 {[%emt 0:00:23]} (52. Be7 $19 Rf3+ 53. Kg2) 52... Kf4 {[%emt 0:00:18]} 53. g6 {[%emt 0:00:31]} Bg2+ $2 {[%emt 0:00:31]} (53... Rf1 {mates} 54. Bg5+ Kf3 55. Bf4 Kxf4 56. Rf5+ exf5 57. gxf7 Rh1#) 54. Kh2 $19 {[%emt 0:00:02]} Bf3+ {[%emt 0:00:07]} 55. Kg1 {[%emt 0:00:01]} Rg2+ {[%emt 0:00:00]} ({Weaker is} 55... Bxh5 56. g7 Kf3 57. g8=Q $11) (55... fxg6 $2 56. Kxf2 gxh5 57. Be7 $19) 56. Kf1 {[%emt 0:00:04]} Rxg6 {[%emt 0:00:12]} ({Stronger than} 56... Bxh5 57. gxf7 Bxf7 58. Kxg2 $17) (56... fxg6 $19 {is more deadly.} 57. Rg5 Rh2 58. Rxg6 Be4) 57. Rh8 {[%emt 0:00:11]} (57. Rh7 $17 {was called for.}) 57... c4 {[%emt 0:00:14][%cal Bc5c4,Bc4c3,Bc3c2][%mdl 32] Strongly threatening ...Ke3.} 58. Rc8 {[%emt 0:00:24]} (58. Rf8 $142) 58... Bd5 {[%emt 0:00:06]} 59. h5 {[%emt 0:00:13] [#]} Rh6 {[%emt 0:00:13]} (59... Rg3 $1 $19 {and Black stays clearly on top. aiming for ...Ke3.} 60. h6 Ke3) 60. Rc7 $2 {[%emt 0:00:04][%mdl 8192]} (60. Rh8 $17 Rxh8 61. Bxh8) 60... Rxh5 {[%emt 0:00:02]} 61. Rxf7 {[%emt 0:00:03]} Ke3 {[%emt 0:00:01][%cal Rh5h1] Black mates.} 62. Rg7 {[%emt 0:00:10]} c3 {[%emt 0:00:32]} 63. Rg3+ {[%emt 0:00:02]} Bf3 {[%emt 0:00:04]} 64. Bg5+ {[%emt 0:00:04] [#]} Rxg5 $1 {[%emt 0:00:05][%mdl 512]} 65. Rxg5 {[%emt 0:00:01]} c2 {[%emt 0:00:00] Weighted Error Value: White=0.97/Black=0.54} 0-1

[Event "Czech Open-Rapid 2022"]
[Site "Pardubice"]
[Date "2022.07.20"]
[Round "2.35"]
[White "Dosedel, Jiri"]
[Black "Stocek, Martin"]
[Result "1-0"]
[ECO "A00"]
[WhiteElo "2008"]
[BlackElo "1851"]
[Annotator "TA"]
[PlyCount "79"]
[EventDate "2022.07.20"]
[EventType "swiss"]
[EventCountry "CZE"]
[SourceTitle "playchess.com"]
[Source "ChessBase"]
[SourceQuality "1"]
[TimeControl "1200+10"]

{[%evp 9,79,0,14,-36,41,-15,88,85,97,92,164,158,266,231,336,304,768,347,743,362,709,381,391,343,334,300,325,237,275,250,391,385,400,393,376,295,321,335,317,306,300,313,283,238,218,225,329,319,381,381,439,409,853,847,826,779,815,704,1452,1429,2566,2020,2990,2929,29990,29991,29993,29985,29992,29990,29993,29994]} 1. g4 {[%emt 0:00:02]} d5 {[%emt 0:00:07]} 2. Bg2 {[%emt 0:00:02]} Bxg4 {[%emt 0:00:13]} 3. c4 {[%emt 0:00:02]} Nd7 {[%emt 0:03:37]} 4. cxd5 {[%emt 0:00:05]} Nb6 {[%emt 0:00:08]} 5. Nc3 {[%emt 0:00:08]} Nf6 {[%emt 0:00:06][%cal Rf6d5]} 6. Qb3 {[%emt 0:00:09] A00: Irregular Openings.} (6. h3 $11 Bc8 7. e4) 6... Rb8 {[%emt 0:00:37] [#]} (6... e5 $15) 7. h3 $146 {[%emt 0:00:13]} (7. d4 $1 $14) ({Predecessor:} 7. d3 h6 8. Bf4 g5 9. Bg3 a6 10. e4 Bg7 11. Bf3 Bd7 12. Nge2 g4 13. Bg2 {1-0 (26) Sawyer,T-Cherner,L USA 1996}) 7... Bf5 {[%emt 0:00:05]} (7... Bd7 $11 {keeps the balance.}) 8. e4 $16 {[%emt 0:00:05] White is better.} Bg6 {[%emt 0:00:03]} 9. Nge2 {[%emt 0:00:30]} Nfd7 {[%emt 0:00:08]} (9... c6 $16) 10. d4 $18 {[%emt 0:00:12] And now h4 would win.} h6 {[%emt 0:00:09]} (10... c5 $16 {keeps fighting.} 11. Be3 c4) 11. Bf4 {[%emt 0:00:20]} a6 {[%emt 0:00:07]} (11... Rc8 {is a better defense.} 12. a4 a5) 12. Rc1 {[%emt 0:00:22][%cal Oc3b5] Hoping for Nb5!} Bh7 $2 {[%emt 0:00:54] [#]} (12... Rc8 13. a4 c5) 13. O-O {[%emt 0:00:07]} (13. Nb5 $142 $1 {[%mdl 512]} axb5 14. Bxc7) 13... g5 $2 {[%emt 0:00:01] [#]} (13... Rc8 14. a4 c5 15. dxc6 Rxc6) 14. Bh2 {[%emt 0:00:25]} (14. Nb5 $142 $1 {[%mdl 512]} axb5 15. Bxc7) 14... f5 $2 {[%emt 0:01:11]} (14... Na8 15. f4 Bg7) 15. f4 {Black must now prevent fxg5.} g4 {[%emt 0:00:33]} 16. e5 {[%emt 0:01:33] Inhibits Nf6. Strongly threatening hxg4.} h5 {[%emt 0:03:33]} 17. h4 {[%emt 0:00:56]} Bg7 {[%emt 0:00:01]} 18. Bg3 {[%emt 0:00:23]} Bg6 {[%emt 0:00:27]} 19. a4 {[%emt 0:00:26]} O-O {[%emt 0:01:39]} (19... Nc8 $142 20. Nd1 Nd6 21. exd6 cxd6) 20. d6+ {[%emt 0:00:06]} (20. a5 Na8 21. Qc4 Kh8 $18) 20... Kh8 {[%emt 0:00:04]} 21. dxc7 {[%emt 0:00:11]} Qxc7 {[%emt 0:00:06]} 22. e6 {[%emt 0:01:02]} Nf6 {[%emt 0:00:25]} 23. Nd5 {[%emt 0:00:03]} Nbxd5 {[%emt 0:00:24]} 24. Rxc7 {[%emt 0:00:06]} Nxc7 {[%emt 0:00:01]} 25. Rc1 {[%emt 0:00:38]} ({Stronger than} 25. Bxb7 Ne4 26. Rc1 Nb5 $11) 25... Nce8 {[%emt 0:00:09]} 26. Qb6 {[%emt 0:01:43]} ({Worse is} 26. Bxb7 Ne4 $11) 26... Nd6 {[%emt 0:00:18]} 27. Rc7 {[%emt 0:00:26]} Nc8 {[%emt 0:03:29]} (27... Nfe4 $142 28. Be1 (28. Rxe7 Nc8 $16) 28... Bf6) 28. Qb4 {[%emt 0:00:16]} b5 {[%emt 0:00:02]} 29. a5 {[%emt 0:00:07]} Rd8 {[%emt 0:00:45]} 30. Bf2 {[%emt 0:02:47][%cal Bg3f2,Bf2d4,Bd4f6][%mdl 32]} Ne4 {[%emt 0:00:40]} (30... g3 $142 31. Bxg3 Bf8) 31. Bxe4 {[%emt 0:00:37]} fxe4 {[%emt 0:00:00]} 32. Ng3 {[%emt 0:00:02]} Nd6 {[%emt 0:01:33]} 33. d5 {[%emt 0:00:46]} Bf6 {[%emt 0:00:11]} 34. Bd4 {[%emt 0:00:17] White threatens Rxe7 and mate.} Ne8 {[%emt 0:01:40]} 35. Rxe7 {[%emt 0:00:12]} Kg8 {[%emt 0:00:06] [#]} 36. Rxe8+ $1 {[%emt 0:00:20][%mdl 512]} Bxe8 {[%emt 0:00:11]} (36... Rxe8 37. Bxf6) 37. Bxf6 {[%emt 0:00:02] White mates.} Rxd5 {[%emt 0:00:09]} 38. Nxe4 {[%emt 0:00:20]} Rc8 {[%emt 0:00:07]} 39. Bc3 {[%emt 0:00:11]} Bg6 {[%emt 0:00:05]} 40. Nf6+ {[%emt 0:00:04] Black did not feel at home in the position after the opening.  Weighted Error Value: White=0.60/Black=0.70} 1-0

[Event "Czech Open-Rapid 2022"]
[Site "Pardubice"]
[Date "2022.07.20"]
[Round "2.36"]
[White "Kotlant, Tomas"]
[Black "Jonsson, Gauti Pall"]
[Result "0-1"]
[ECO "C02"]
[WhiteElo "1625"]
[BlackElo "2071"]
[Annotator "TA"]
[PlyCount "96"]
[EventDate "2022.07.20"]
[EventType "swiss"]
[EventCountry "CZE"]
[SourceTitle "playchess.com"]
[Source "ChessBase"]
[SourceQuality "1"]
[TimeControl "1200+10"]

{[%evp 9,96,0,22,-60,-43,-95,-79,-110,-68,-62,-51,-44,-23,-63,-60,-167,-140,-185,-127,-129,-92,-109,-97,-93,-90,-108,-104,-104,-133,-297,-122,-144,-33,-35,29,27,28,18,21,21,65,0,0,0,0,0,0,-161,-172,-173,-177,-164,-176,-160,7,-163,-162,-176,-106,-208,-210,-241,-236,-289,-280,-277,-249,-364,-367,-343,-294,-437,-425,-908,-881,-1297,-774,-1434,-1310,-1622,-1562,-1350,-1272,-2970,-2847,-2390,-2420,-29993,-29987]} 1. e4 {[%emt 0:00:03]} e6 {[%emt 0:00:08]} 2. d4 {[%emt 0:00:02]} d5 {[%emt 0:00:04]} 3. e5 {[%emt 0:00:06]} c5 {[%emt 0:00:08]} 4. c3 {[%emt 0:00:12]} Nc6 {[%emt 0:00:07]} 5. Nf3 {[%emt 0:00:02]} Nge7 {[%emt 0:00:52]} 6. g4 {[%emt 0:01:36] [#] C02: French: Advance Variation.} (6. Bd3 $11) 6... h5 $146 {[%emt 0:00:46]} ({Predecessor:} 6... Ng6 7. Bd3 Qb6 8. a3 Qa5 9. O-O Be7 10. Be3 Qb6 11. b4 cxb4 12. axb4 Bd7 13. Nbd2 O-O {0-1 (38) Dominguez Afonso,A (1619)-Ruperez Benito,Y (1477) Madrid 2016}) 7. gxh5 {[%emt 0:02:21]} (7. g5 $1 $15) 7... Nf5 {[%emt 0:00:46]} 8. Bh3 {[%emt 0:01:41] Black is better.} Qb6 {[%emt 0:00:45] Black is more active.} (8... Rxh5 9. Bg4 Rh7 10. Bxf5 exf5 11. dxc5 $15) 9. Bxf5 {[%emt 0:01:29]} exf5 {[%emt 0:00:04]} 10. h6 {[%emt 0:01:08]} g6 {[%emt 0:01:00]} 11. Qb3 {[%emt 0:02:37]} Bxh6 {[%emt 0:02:34]} 12. Nbd2 {[%emt 0:02:12]} (12. Bxh6 $15 Rxh6 13. dxc5 Qxc5 14. Nbd2) 12... cxd4 {[%emt 0:01:09]} 13. cxd4 {[%emt 0:04:20]} Qxb3 {[%emt 0:01:14]} (13... Nxd4 14. Qxb6 Nxf3+ 15. Nxf3 $17) (13... Qa6 $19 {And now ...Bf8 would win.} 14. Qa3 (14. Qxd5 $2 Be6 $19) 14... Qb5) 14. Nxb3 $17 {[%emt 0:00:23][%cal Bd2b3,Bb3c1,Bc1e2,Be2c3][%mdl 32]} Nb4 {[%emt 0:00:03] White must now prevent ...Nc2+.} 15. Kd1 {[%emt 0:00:46] Prevents Nc2.} Nd3 {[%emt 0:00:56]} 16. Ke2 {[%emt 0:01:30]} Nxc1+ {[%emt 0:00:02]} 17. Nxc1 {[%emt 0:00:16]} Bd7 {[%emt 0:00:00]} 18. a4 {[%emt 0:00:25]} Rc8 {[%emt 0:00:02][%cal Ba8c8,Bc8c4,Bc4b4,Bb4b6,Bb6c6,Bc6c3][%mdl 32]} 19. Kd3 {[%emt 0:00:40] Prevents Rc2.} (19. Nd3 $17) 19... Ke7 {[%emt 0:00:48]} (19... f4 $1 $19 {and Black stays clearly on top. ...Bg4 is the strong threat.} 20. Kd2 Bg4) 20. Ne2 {[%emt 0:00:11]} a6 {[%emt 0:01:15]} (20... f4 $17 {aiming for ...Bf5+.} 21. Nc3 Bg4) 21. Nc3 $15 {[%emt 0:00:06]} Ke6 {[%emt 0:00:02]} (21... Be6 $15) 22. h4 $11 {[%emt 0:00:11]} Rc4 {[%emt 0:01:06]} 23. b3 {[%emt 0:00:29]} Rb4 {[%emt 0:01:44]} 24. Rab1 {[%emt 0:00:01]} Rb6 {[%emt 0:00:44]} 25. h5 {[%emt 0:01:00]} ({White should try} 25. b4 $1 $14) 25... g5 $1 {[%emt 0:00:13]} (25... Bf4 $2 26. hxg6 (26. Ne2 g5 $18) 26... Rg8 27. Ne2 $18) 26. b4 $1 {[%emt 0:00:24]} Rc6 {[%emt 0:00:54] Threatens to win with ...Rhc8.} 27. b5 {[%emt 0:00:09]} axb5 {[%emt 0:00:08] Really sharp!} 28. Rxb5 $2 {[%emt 0:00:07] [#]} (28. Nxd5 $11 g4 29. Nf6 (29. axb5 Rcc8 $15) 29... gxf3 30. d5+ Kxe5 31. dxc6 Bxc6 32. axb5 Be4+ 33. Nxe4 fxe4+ 34. Kc4) 28... Rxc3+ $1 $19 {[%emt 0:00:22][%mdl 512]} 29. Kxc3 {[%emt 0:00:02]} Bxb5 {[%emt 0:00:02]} 30. axb5 $11 {[%emt 0:00:01][%mdl 4096] Endgame KRB-KRN} Rc8+ {[%emt 0:00:07]} 31. Kd3 {[%emt 0:00:11]} Rc4 $2 {[%emt 0:01:22]} (31... Ra8 $17 32. Nd2 Ra3+ 33. Kc2 Ra2+ 34. Kd3 Ra3+ 35. Kc2 g4) 32. Rb1 $2 {[%emt 0:00:07]} (32. Nd2 $11 {and White stays safe.} Rb4 33. Rb1 Rxb1 34. Nxb1) 32... g4 $19 {[%emt 0:00:34]} 33. Ne1 {[%emt 0:00:16] [#]} f4 {[%emt 0:01:17]} ({Black should play} 33... Ra4 $1 $19 34. Nc2 Ra5) 34. Nc2 {[%emt 0:00:09] [#]} (34. f3 $17 {was called for.} g3 35. Ra1) 34... Ra4 $1 35. Rg1 Kf5 {[%emt 0:00:23]} 36. Re1 {[%emt 0:00:40]} Ra5 {[%emt 0:00:38]} ({Not} 36... g3 37. fxg3 fxg3 38. Ne3+ Bxe3 39. Kxe3 $17) 37. Rb1 {[%emt 0:00:10]} Kg5 38. Rh1 (38. Kc3 {was worth a try.}) 38... Rxb5 {[%emt 0:00:05]} 39. Kc3 {[%emt 0:00:24]} Ra5 {[%emt 0:01:06]} 40. f3 {[%emt 0:00:07]} (40. Kb3 $142) 40... gxf3 {Hoping for ...Ra8.} 41. Ne1 {[%emt 0:00:00]} (41. Kb4 $142 Ra6 42. Kb3) 41... Ra3+ {[%emt 0:00:41]} 42. Kb4 {[%emt 0:00:13]} Bf8+ {[%emt 0:00:52]} 43. Kb5 {[%emt 0:00:08]} f2 {[%emt 0:00:08]} 44. Nc2 Rb3+ 45. Ka4 {[%emt 0:00:18]} Rb2 {[%emt 0:00:14]} 46. h6 {[%emt 0:00:23]} Rxc2 {[%emt 0:00:27]} 47. h7 {[%emt 0:00:01]} Bg7 {[%emt 0:00:01]} 48. Rh2 {[#]} f1=Q $1 {[%emt 0:00:11] Weighted Error Value: White=0.84/Black=0.29 (precise)} 0-1

[Event "Czech Open-Rapid 2022"]
[Site "Pardubice"]
[Date "2022.07.20"]
[Round "2.37"]
[White "Soukup, Stepan"]
[Black "Babula, Vlastimil jr"]
[Result "0-1"]
[ECO "D30"]
[WhiteElo "1809"]
[BlackElo "2039"]
[Annotator "TA"]
[PlyCount "134"]
[EventDate "2022.07.20"]
[EventType "swiss"]
[EventCountry "CZE"]
[SourceTitle "playchess.com"]
[Source "ChessBase"]
[SourceQuality "1"]
[TimeControl "1200+10"]

{[%evp 11,134,11,0,0,0,-2,-2,0,0,-6,23,23,31,27,17,29,30,32,21,-8,-15,-14,6,-59,-56,-75,-74,-128,-116,-141,-14,-10,-11,-14,-10,-13,-14,-12,0,0,0,0,0,-56,-44,-58,-2,-239,-239,-926,-918,-919,-885,-879,-870,-952,-271,-271,-272,-298,-303,-293,-290,-320,-308,-383,-383,-418,-364,-507,-506,-587,-559,-638,-406,-1100,-969,-2084,-1741,-1952,-1777,-6394,-5561,-12670,-6533,-29966,-5433,-29972,-29967,-29964,-29952,-29975,-29976,-29977,-29976,-29978,-29979,-29979,-29980,-29980,-29981,-29981,-29981,-29981,-29982,-29983,-29984,-29983,-29983,-29984,-29985,-29985,-29985,-29987,-29988,-29988,-29989,-29990,-29991,-29991,-29991,-29992,-29993,-29995,-29996]} 1. d4 {[%emt 0:00:02]} d5 {[%emt 0:00:01][%cal Bd7d5,Bd5c4][%mdl 32]} 2. c4 {[%emt 0:00:01]} e6 {[%emt 0:00:02]} 3. Nf3 {[%emt 0:00:02]} c6 {[%emt 0:00:02]} 4. g3 {[%emt 0:00:01]} Nf6 {[%emt 0:00:01]} 5. Bg2 {[%emt 0:00:12]} dxc4 {[%emt 0:00:02]} 6. O-O {[%emt 0:00:00]} b5 {[%emt 0:00:02]} 7. Ne5 {[%emt 0:03:27] E04: Open Catalan: 5 Nf3.} Bb7 {[%emt 0:00:04]} 8. a4 {[%emt 0:00:08] axb5 is the strong threat.} a6 {[%emt 0:00:02]} 9. b3 {[%emt 0:00:28] The position is equal.} cxb3 {[%emt 0:00:26]} 10. Qxb3 {[%emt 0:01:05]} Be7 {[%emt 0:02:35]} 11. axb5 {[%emt 0:04:14] 11.Rd1 is the modern continuation.} axb5 {[%emt 0:00:03]} 12. Rxa8 {[%emt 0:00:03]} Bxa8 {[%emt 0:00:02]} 13. Qa2 {[%emt 0:00:01]} Bb7 {[%emt 0:00:59]} 14. Qa7 {[%emt 0:01:35][%mdl 1024] White has compensation.} Qc8 {[%emt 0:00:20]} 15. Ba3 {[%emt 0:03:10] Threatens to win with Bxe7.} b4 {[%emt 0:00:16]} 16. Bb2 {[%emt 0:00:16]} Nbd7 {[%emt 0:02:30]} 17. Nc4 {[%emt 0:03:13] [#]} (17. Nd2 $11) 17... O-O $146 {[%emt 0:02:59]} ({Predecessor:} 17... Qa8 18. Qxa8+ Bxa8 19. Nbd2 O-O 20. Ra1 Nd5 21. Ra7 Rd8 22. e4 Nc3 23. e5 f6 {½-½ (37) Aponte Castillo,J (2100)-Blazeka,M (2328) Paracin 2016}) 18. Na5 {[%emt 0:01:38]} Ba8 {[%emt 0:00:01]} 19. Bxc6 {[%emt 0:01:21]} Bxc6 $17 {[%emt 0:00:47]} 20. Rc1 {[%emt 0:00:02] [#]} Qa8 {[%emt 0:02:12]} 21. Nxc6 $11 {[%emt 0:00:02]} Qxa7 {[%emt 0:00:01]} 22. Nxa7 {[%emt 0:00:01]} Ra8 {[%emt 0:00:57]} 23. Rc8+ {[%emt 0:00:03]} Rxc8 {[%emt 0:00:01]} 24. Nxc8 {[%emt 0:00:02]} Bf8 {[%emt 0:00:06]} 25. Nd2 {[%emt 0:00:09]} Nd5 {[%emt 0:00:17]} 26. Na7 {[%emt 0:01:37]} N7b6 {[%emt 0:00:31]} 27. Nb5 {[%emt 0:00:50]} (27. Nc6 $11) 27... Na4 {[%emt 0:00:02]} 28. Bc1 {[%emt 0:00:06]} g6 {[%emt 0:01:12]} (28... f5 $15) 29. Ne4 $2 {[%emt 0:00:20] Loses the game.} (29. f3 $11) 29... b3 $19 {[%emt 0:00:43]} 30. Be3 $2 {[%emt 0:00:39]} (30. Ba3) 30... b2 {[%emt 0:01:06]} 31. Nd2 {[%emt 0:00:01]} Ndc3 {[%emt 0:00:05]} 32. Nxc3 {[%emt 0:00:01]} Nxc3 {[%emt 0:00:01][%mdl 4096] Endgame KBN-KBN} 33. Kf1 {[%emt 0:00:01]} b1=Q+ $2 {[%emt 0:00:03]} (33... Bb4 34. d5 {[#]} Nxe2 $1 {[%mdl 512]}) 34. Nxb1 {[%emt 0:00:02]} Nxb1 {[%emt 0:00:02]} 35. Bc1 {[%emt 0:00:12]} Ba3 {[%emt 0:00:06]} 36. Bf4 {[%emt 0:00:06]} Nc3 {[%emt 0:00:14]} 37. Be5 {[%emt 0:00:15]} Kf8 {[%emt 0:00:15]} 38. e3 {[%emt 0:00:02]} Ke7 {[%emt 0:00:03]} 39. Ke1 {[%emt 0:00:10]} Bb4 {[%emt 0:00:08] aiming for ...f6.} 40. Kf1 {[%emt 0:00:04]} f6 {[%emt 0:00:36]} 41. Bc7 {[%emt 0:00:05]} Kd7 {[%emt 0:00:11]} 42. Bb8 {[%emt 0:00:17]} Nb5 {[%emt 0:00:08] And now ...Kc8 would win.} 43. g4 {[%emt 0:00:05]} (43. h4 $142) 43... Bd6 {[%emt 0:00:03]} 44. Bxd6 {[%emt 0:00:05]} Kxd6 {[%emt 0:00:02] KN-KP} 45. Ke2 {[%emt 0:00:06]} e5 {[%emt 0:00:13]} 46. dxe5+ {[%emt 0:00:05]} fxe5 {[%emt 0:00:05] Hoping for ...Kd5.} 47. f3 {[%emt 0:00:12]} Kd5 {[%emt 0:00:02]} 48. Kd3 {[%emt 0:00:02]} Nd6 {[%emt 0:00:05]} (48... e4+ $142 49. Ke2 exf3+ 50. Kxf3 g5 51. h3 Nd6 52. Kg3 Ke4 53. Kf2 Nc4 54. Ke2 Nxe3 55. Kf2 Nd5 56. Ke2 Nf4+ 57. Kf2 Nxh3+ 58. Kg3 Nf4 59. Kf2 h6 60. Kf1 Kf3 61. Ke1 Kxg4 62. Kf2 h5 63. Kf1 h4 64. Ke1 h3 65. Kd2 h2 66. Ke3 h1=Q 67. Kd4 Qd5+ 68. Kc3 Qc5+ 69. Kb2 Nd3+ 70. Kb3 Qc6 71. Ka3 Qc3+ 72. Ka4 Qb4#) 49. h4 {[%emt 0:00:17]} h5 {[%emt 0:00:14] Black mates.} 50. e4+ {[%emt 0:00:35]} Ke6 {[%emt 0:00:04]} 51. gxh5 {[%emt 0:00:17]} gxh5 {[%emt 0:00:02] KN-K3P} 52. Ke3 {[%emt 0:00:04]} Kf6 {[%emt 0:00:20]} 53. f4 {[%emt 0:00:04]} exf4+ {[%emt 0:00:04]} 54. Kxf4 {[%emt 0:00:01] KN-KPP} Nf7 {[%emt 0:00:05]} 55. Kf3 {[%emt 0:00:12]} Ke5 {[%emt 0:00:01]} 56. Ke3 {[%emt 0:00:02]} Nd6 {[%emt 0:00:02]} 57. Kf3 {[%emt 0:00:01]} Nxe4 {[%emt 0:00:02] KN-KP} 58. Kg2 {[%emt 0:00:05]} Kf4 {[%emt 0:00:02]} 59. Kh3 {[%emt 0:00:01]} Nf6 {[%emt 0:00:02]} 60. Kh2 {[%emt 0:00:02]} Kg4 {[%emt 0:00:02]} 61. Kg2 {[%emt 0:00:01]} Kxh4 {[%emt 0:00:01]} 62. Kh2 {[%emt 0:00:01]} Kg4 {[%emt 0:00:04]} 63. Kg2 {[%emt 0:00:02]} h4 {[%emt 0:00:03][%cal Bh5h4,Bh4h3][%mdl 32]} 64. Kh2 {[%emt 0:00:01]} h3 {[%emt 0:00:07]} 65. Kh1 {[%emt 0:00:01]} Kg3 {[%emt 0:00:02]} 66. Kg1 {[%emt 0:00:02]} Ng4 {[%emt 0:00:02]} 67. Kh1 {[%emt 0:00:01]} Nf2+ {[%emt 0:00:02] Weighted Error Value: White=1.04/Black=0.35} 0-1